Department Family,Entity,Date Paid,Expense Type,Expense Area,Supplier,Transaction Number,AP Amount
Department of Health,East London NHS Foundation Trust,01/09/2017,SLA Charges,Estates,HOMERTON UNIVERSITY HOSPITAL NHS FOUNDATION TRUST,23849038,"845,808.84"
Department of Health,East London NHS Foundation Trust,01/09/2017,Rent,EF East Ham Care Centre,COMMUNITY HEALTH PARTNERSHIPS LTD,23849094,"461,234.83"
Department of Health,East London NHS Foundation Trust,01/09/2017,Payroll SLA,Corporate Directorate,BARTS HEALTH NHS TRUST,23985271,"119,999.50"
Department of Health,East London NHS Foundation Trust,06/09/2017,Computer Software/License,ICT,CITY & HACKNEY MIND,24003870,"42,461.00"
Department of Health,East London NHS Foundation Trust,06/09/2017,SLA Charges,Estates,G4S FACILITIES MANAGEMENT (UK) LTD,24003939,"314,543.96"
Department of Health,East London NHS Foundation Trust,06/09/2017,Computer Software/License,ICT ,SERVELEC HEALTHCARE LTD,24036847,"29,748.00"
Department of Health,East London NHS Foundation Trust,06/09/2017,Building Works,Estates,FOREST GATE CONSTRUCTION CO LTD,23987020,"56,226.07"
Department of Health,East London NHS Foundation Trust,08/09/2017,Electricity,EF 409 Stratford High Street,BRITISH GAS BUSINESS,24036932,528.53
Department of Health,East London NHS Foundation Trust,08/09/2017,Electricity,EF Donald Winnicott,BRITISH GAS BUSINESS,24036932,"2,190.52"
Department of Health,East London NHS Foundation Trust,08/09/2017,Electricity,EF First Avenue Resource Ctr,BRITISH GAS BUSINESS,24036932,501.51
Department of Health,East London NHS Foundation Trust,08/09/2017,Electricity,EF Glasshouse Fields,BRITISH GAS BUSINESS,24036932,44.47
Department of Health,East London NHS Foundation Trust,08/09/2017,Electricity,EF Homerton Row,BRITISH GAS BUSINESS,24036932,656.31
Department of Health,East London NHS Foundation Trust,08/09/2017,Electricity,EF John Howard Estate,BRITISH GAS BUSINESS,24036932,"23,883.70"
Department of Health,East London NHS Foundation Trust,08/09/2017,Electricity,EF Kings Wharf,BRITISH GAS BUSINESS,24036932,103.73
Department of Health,East London NHS Foundation Trust,08/09/2017,Electricity,EF Lodge General,BRITISH GAS BUSINESS,24036932,"1,957.79"
Department of Health,East London NHS Foundation Trust,08/09/2017,Electricity,EF Passmore Edwards,BRITISH GAS BUSINESS,24036932,153.55
Department of Health,East London NHS Foundation Trust,08/09/2017,Electricity,EF Primrose Centre,BRITISH GAS BUSINESS,24036932,396.08
Department of Health,East London NHS Foundation Trust,08/09/2017,Electricity,EF Shore Road,BRITISH GAS BUSINESS,24036932,166.71
Department of Health,East London NHS Foundation Trust,08/09/2017,Electricity,EF The Green,BRITISH GAS BUSINESS,24036932,173.62
Department of Health,East London NHS Foundation Trust,08/09/2017,Electricity,EF York House,BRITISH GAS BUSINESS,24036932,"1,485.69"
Department of Health,East London NHS Foundation Trust,08/09/2017,Building Works,Estates,BARRY MORGAN LTD,23882770,"30,520.00"
Department of Health,East London NHS Foundation Trust,11/09/2017,CNST contributions,Corporate Directorate,NHS LITIGATION AUTHORITY,24086780,"-55,108.80"
Department of Health,East London NHS Foundation Trust,13/09/2017,Computer Software/License,ICT ,SERVELEC HEALTHCARE LTD,24036990,"29,748.00"
Department of Health,East London NHS Foundation Trust,13/09/2017,Training Expenses,Corporate Directorate,INSTITUTE FOR HEALTHCARE IMPROVEMENT,23830363,"46,490.75"
Department of Health,East London NHS Foundation Trust,13/09/2017,SLA Charges,Estates,G4S FACILITIES MANAGEMENT (UK) LTD,23849145,"87,048.88"
Department of Health,East London NHS Foundation Trust,13/09/2017,SLA Charges,Estates,G4S FACILITIES MANAGEMENT (UK) LTD,23849148,"221,597.06"
Department of Health,East London NHS Foundation Trust,15/09/2017,Lease Rents,Trustwide,FURNISHED HOMES,23822275,"33,552.00"
Department of Health,East London NHS Foundation Trust,15/09/2017,External Consultancy Fees,Corporate Directorate,OH ASSIST LTD,24108595,"25,877.94"
Department of Health,East London NHS Foundation Trust,15/09/2017,Transport Costs,Trustwide,GREEN TOMATO CARS LTD,24129904,"23,185.65"
Department of Health,East London NHS Foundation Trust,20/09/2017,Professional Services,Estates,FORM DESIGN EUROPE LTD,23972106,"23,564.22"
Department of Health,East London NHS Foundation Trust,20/09/2017,Drugs Supplies,Pharmacy Department,JANSSEN CILAG LTD,24167401,"37,901.66"
Department of Health,East London NHS Foundation Trust,20/09/2017,Drugs Supplies,Pharmacy Department,JANSSEN CILAG LTD,24167408,"45,167.80"
Department of Health,East London NHS Foundation Trust,22/09/2017,Building Works,Estates,R & B DECORATORS & REFURBISHMENT,23972122,"41,207.60"
Department of Health,East London NHS Foundation Trust,22/09/2017,SLA Charges,EF Luton and Beds,G4S FACILITIES MANAGEMENT (UK) LTD,24190617,"314,543.96"
Department of Health,East London NHS Foundation Trust,22/09/2017,SLA Charges,EF CH and Newham Comm Facil,G4S FACILITIES MANAGEMENT (UK) LTD,24190639,"79,570.02"
Department of Health,East London NHS Foundation Trust,22/09/2017,Unitary Charges,Estates,GH NEWHAM LTD,24190830,"469,980.68"
Department of Health,East London NHS Foundation Trust,22/09/2017,SLA Charges,Estates,RYDON MAINTENANCE LTD,24190850,"55,768.18"
Department of Health,East London NHS Foundation Trust,22/09/2017,SLA Charges,EF CH and Newham Comm Facil,G4S FACILITIES MANAGEMENT (UK) LTD,24191090,"55,180.74"
Department of Health,East London NHS Foundation Trust,27/09/2017,Photocopying costs,Corporate Directorate,XEROX (UK) LTD,24129940,"58,348.75"
Department of Health,East London NHS Foundation Trust,27/09/2017,Rent,Estates,CHAMBERLAIN GROUP (THE),24190838,"47,500.00"
Department of Health,East London NHS Foundation Trust,27/09/2017,Building Works,Estates,FOREST GATE CONSTRUCTION CO LTD,24218707,"40,752.50"
